bitfinex/quotes_SOLUSD_20230110
["timestamp","ask_amount","ask_price","bid_price","bid_amount"]
[1673375696644,3.0744512,16.413,16.401,20.0]
[1673375696962,10.1326912,16.413,16.401,20.0]
[1673375697793,10.1326912,16.413,16.402,1.92]
[1673375698002,7.05824,16.413,16.402,1.92]
[1673375698315,1.63594777,16.412,16.402,1.92]
[1673375698523,113.1807,16.415,16.403,14.72]
[1673375698738,1.8579932,16.414,16.404,37.96]
[1673375698949,113.1807,16.415,16.404,38.92]
[1673375699159,20.0,16.422,16.404,38.92]
[1673375699481,20.0,16.422,16.41,126.49]
[1673375699671,20.0,16.422,16.411,1.92]
[1673375699886,20.0,16.422,16.411,18.92]
[1673375701162,20.0,16.422,16.412,20.0]
[1673375701374,20.0,16.422,16.413,18.92]
[1673375701778,20.0,16.422,16.414,20.0]
[1673375701980,20.0,16.422,16.415,0.96]
[1673375702189,20.0,16.422,16.415,17.0]
[1673375702403,20.0,16.422,16.416,20.0]
[1673375702612,20.0,16.422,16.414,20.0]
[1673375703035,20.0,16.422,16.411,20.0]
[1673375703586,20.0,16.422,16.411,37.73]
[1673375703789,20.0,16.422,16.412,0.96]
[1673375704106,20.0,16.422,16.412,18.92]
[1673375704301,20.0,16.422,16.413,20.0]
[1673375704512,20.0,16.422,16.414,1.92]
[1673375704729,20.0,16.422,16.414,18.92]
[1673375705145,20.0,16.422,16.415,20.0]
[1673375705345,20.0,16.422,16.416,18.92]
[1673375705874,20.0,16.422,16.417,20.0]
[1673375706207,20.0,16.422,16.418,1.92]
[1673375706419,8.5,16.421,16.418,17.96]
[1673375706731,8.5,16.421,16.419,20.96]
[1673375706942,8.5,16.421,16.42,0.96]
[1673375707129,244.7575,16.425,16.42,0.96]
[1673375707130,20.0,16.425,16.42,0.96]
[1673375707343,20.0,16.425,16.421,0.96]
[1673375707762,20.0,16.425,16.422,0.96]
[1673375707972,20.0,16.425,16.423,0.96]
[1673375708200,20.0,16.425,16.424,0.96]
[1673375709131,20.0,16.425,16.421,20.0]
[1673375709357,20.0,16.425,16.422,1.92]
[1673375712188,20.0,16.425,16.422,0.96]
[1673375712405,20.0,16.425,16.421,20.0]
[1673375712723,20.0,16.425,16.42,126.03]
[1673375712932,3.0744512,16.424,16.42,126.03]
[1673375713147,3.0744512,16.424,16.413,50.52686814]
[1673375713455,3.0744512,16.424,16.414,1.92]
[1673375713983,3.0744512,16.424,16.414,98.52537127]
[1673375714196,20.0,16.425,16.414,98.52537127]
[1673375714411,20.0,16.425,16.42,125.93]
[1673375714625,20.0,16.425,16.421,1.92]
[1673375714842,9.0,16.425,16.421,1.92]
[1673375715041,9.0,16.425,16.421,21.92]
[1673375719877,20.0,16.429,16.421,21.92]
[1673375720075,20.0,16.431,16.421,140.66107719]
[1673375720286,20.0,16.431,16.421,186.73958032]
[1673375721247,20.0,16.432,16.421,186.73958032]
[1673375721555,9.0,16.435,16.421,291.93401686]
[1673375721957,20.0,16.442,16.421,291.93401686]
[1673375722167,20.0,16.442,16.43,126.31]
[1673375722403,20.0,16.442,16.431,1.92]
[1673375722602,20.0,16.442,16.431,154.28958032]
[1673375722820,20.0,16.442,16.432,132.36958032]
[1673375723130,20.0,16.442,16.433,108.21107719]
[1673375723347,20.0,16.442,16.433,154.28958032]
[1673375723539,20.0,16.442,16.434,132.36958032]
[1673375723756,20.0,16.442,16.435,21.92]
[1673375723979,20.0,16.442,16.435,72.44686814]
[1673375724193,20.0,16.442,16.436,50.52686814]
[1673375724381,20.0,16.442,16.437,21.92]
[1673375724796,20.0,16.442,16.438,50.52686814]
[1673375725008,20.0,16.442,16.438,72.44686814]
[1673375726196,20.0,16.442,16.438,20.0]
[1673375726384,20.0,16.442,16.435,20.0]
[1673375727462,20.0,16.442,16.436,1.92]
[1673375727672,9.0,16.439,16.436,1.92]
[1673375727859,20.0,16.442,16.436,1.92]
[1673375728064,20.0,16.442,16.436,57.68420905]
[1673375728282,20.0,16.442,16.436,88.21107719]
[1673375728712,20.0,16.442,16.437,20.0]
[1673375728925,20.0,16.442,16.438,1.92]
[1673375729760,20.0,16.442,16.438,52.44686814]
[1673375729970,20.0,16.442,16.439,20.0]
[1673375730169,20.0,16.442,16.44,1.92]
[1673375730378,20.0,16.442,16.44,52.44686814]
[1673375730590,20.0,16.442,16.44,72.44686814]
[1673375732077,127.1385133,16.443,16.441,20.0]
[1673375732292,38.7289133,16.443,16.442,0.96]
[1673375732502,38.7289133,16.443,16.442,83.76271218]
[1673375732898,38.7289133,16.443,16.442,134.28958032]
[1673375733112,38.7289133,16.443,16.442,154.28958032]
[1673375733324,20.0,16.447,16.442,154.28958032]
[1673375733540,20.0,16.45,16.443,129.0130745]
[1673375733845,7.5,16.702,16.45,50.22304205]
[1673375733846,125.7115516,16.452,16.45,50.22304205]
[1673375734064,482.93961641,16.452,16.451,21.92]
[1673375734285,384.02620223,16.452,16.451,115.91561328]
[1673375734506,384.02620223,16.452,16.451,162.73045243]
[1673375735118,384.02620223,16.452,16.451,160.81045243]
[1673375735335,373.02620223,16.452,16.451,160.81045243]
[1673375735749,373.02620223,16.452,16.451,140.81045243]
[1673375736701,373.02620223,16.452,16.451,142.73045243]
[1673375736939,362.02620223,16.452,16.451,142.73045243]
[1673375738410,362.02620223,16.452,16.451,162.73045243]
[1673375738807,351.02620223,16.452,16.451,162.73045243]
[1673375743876,351.02620223,16.452,16.451,160.81045243]
[1673375744422,352.65129714,16.452,16.451,160.81045243]
[1673375744584,351.02620223,16.452,16.451,160.81045243]
[1673375745110,351.02620223,16.452,16.44,125.21]
[1673375745111,48.12604757,16.451,16.44,125.21]
[1673375745327,48.12604757,16.451,16.441,20.0]
[1673375745544,48.12604757,16.451,16.448,34.62684169]
[1673375746075,48.12604757,16.451,16.448,109.83860597]
[1673375746494,48.12604757,16.451,16.449,34.62684169]
[1673375746899,48.12604757,16.451,16.45,0.96]
[1673375747108,351.02620223,16.452,16.45,20.96]
[1673375747323,351.02620223,16.452,16.45,130.79860597]
[1673375748185,351.02620223,16.452,16.451,0.96]
[1673375748400,351.02620223,16.452,16.451,1.92]
[1673375748609,351.02620223,16.452,16.451,115.892169]
[1673375748815,351.02620223,16.452,16.451,135.892169]
[1673375749030,340.02620223,16.452,16.451,135.892169]
[1673375749349,278.06249984,16.452,16.451,135.892169]
[1673375749556,230.49970886,16.452,16.451,135.892169]
[1673375749879,145.93140878,16.452,16.451,0.001869]
[1673375750076,145.93140878,16.452,16.448,34.29615165]
[1673375750407,145.93140878,16.452,16.448,94.58004926]
[1673375750935,145.93140878,16.452,16.449,30.67246797]
[1673375751133,145.93140878,16.452,16.45,20.0]
[1673375751344,145.93140878,16.452,16.45,84.61723095]
[1673375751558,145.93140878,16.452,16.45,117.57591021]
[1673375751874,145.93140878,16.452,16.451,1.92]
[1673375755876,147.57377415,16.452,16.451,1.92]
[1673375756185,145.93140878,16.452,16.451,1.92]
[1673375756402,145.93140878,16.452,16.45,48.42232787]
[1673375758600,134.93140878,16.452,16.45,48.42232787]
[1673375758810,134.93140878,16.452,16.451,1.92]
[1673375760616,134.93140878,16.452,16.45,48.42232787]
[1673375761026,123.93140878,16.452,16.45,48.42232787]
[1673375761463,123.93140878,16.452,16.451,30.15566121]
[1673375761666,123.93140878,16.452,16.451,50.15566121]
[1673375761871,123.93140878,16.452,16.451,91.28122908]
[1673375762082,123.93140878,16.452,16.451,92.24122908]
[1673375762619,123.93140878,16.452,16.451,52.07566121]
[1673375763568,123.93140878,16.452,16.451,20.0]
[1673375763769,123.93140878,16.452,16.448,51.02232787]
[1673375764099,112.93140878,16.452,16.449,71.74071796]
[1673375764406,112.93140878,16.452,16.45,20.0]
[1673375767024,112.93140878,16.452,16.445,20.0]
[1673375767350,112.93140878,16.452,16.446,1.92]
[1673375767754,112.93140878,16.452,16.446,0.96]
[1673375767983,112.93140878,16.452,16.444,20.0]
[1673375768502,112.93140878,16.452,16.442,20.0]
[1673375768718,112.93140878,16.452,16.445,32.91258516]
[1673375768931,112.93140878,16.452,16.446,20.0]
[1673375769240,112.93140878,16.452,16.447,32.91258516]
[1673375769455,112.93140878,16.452,16.448,0.96]
[1673375769668,112.93140878,16.452,16.449,0.96]
[1673375769879,112.93140878,16.452,16.45,0.96]
[1673375770071,112.93140878,16.452,16.451,0.96]
[1673375770280,101.93140878,16.452,16.451,0.96]
[1673375771229,101.93140878,16.452,16.451,20.96]
[1673375771439,101.93140878,16.452,16.451,1.92]
[1673375772917,90.93140878,16.452,16.448,20.0]
[1673375773127,90.93140878,16.452,16.446,20.0]
[1673375774059,90.93140878,16.452,16.442,20.0]
[1673375774271,90.93140878,16.452,16.441,20.0]
[1673375774905,20.0,16.451,16.441,20.0]
[1673375777339,20.0,16.451,16.442,1.92]
[1673375779314,20.0,16.451,16.441,20.0]
[1673375780802,20.0,16.451,16.442,1.92]
[1673375781328,20.0,16.451,16.443,32.91258516]
[1673375781542,20.0,16.451,16.444,21.92]
[1673375781853,20.0,16.451,16.445,1.92]
[1673375782092,20.0,16.451,16.442,1.92]
[1673375784695,20.0,16.451,16.442,21.92]
[1673375785126,20.0,16.451,16.443,20.0]
[1673375785347,20.0,16.451,16.444,1.92]
[1673375789531,210.19870878,16.452,16.444,1.92]
[1673375789868,90.93140878,16.452,16.445,32.99925174]
[1673375790063,90.93140878,16.452,16.446,21.92]
[1673375790490,90.93140878,16.452,16.446,54.91925174]
[1673375790700,90.93140878,16.452,16.447,43.19235457]
[1673375790911,90.93140878,16.452,16.448,21.92]
[1673375791519,90.93140878,16.452,16.449,43.19235457]
[1673375791732,90.93140878,16.452,16.45,21.92]
[1673375791953,79.93140878,16.452,16.45,21.92]
[1673375793004,79.93140878,16.452,16.45,20.0]
[1673375794067,68.93140878,16.452,16.45,20.0]
[1673375794253,68.93140878,16.452,16.451,1.92]
[1673375795429,68.93140878,16.452,16.448,43.19235457]
[1673375795644,68.93140878,16.452,16.449,20.0]
[1673375796485,57.93140878,16.452,16.449,35.52920063]
[1673375796688,57.93140878,16.452,16.45,20.0]
[1673375797436,57.93140878,16.452,16.451,1.92]
[1673375798891,57.93140878,16.452,16.451,38.92402983]
[1673375799205,57.93140878,16.452,16.451,58.92402983]
[1673375800459,57.93140878,16.452,16.451,105.69613036]
[1673375802870,57.93140878,16.452,16.451,66.77210053]
[1673375803083,43.26779947,16.451,16.448,38.88774752]
[1673375803316,43.26779947,16.451,16.441,31.10791549]
[1673375804047,43.26779947,16.451,16.44,165.48529045]
[1673375804266,43.26779947,16.451,16.441,20.0]
[1673375804773,43.26779947,16.451,16.441,51.10791549]
[1673375805192,43.26779947,16.451,16.441,20.0]
[1673375805401,43.26779947,16.451,16.442,0.96]
[1673375805612,43.26779947,16.451,16.443,0.96]
[1673375805829,43.26779947,16.451,16.444,0.96]
[1673375806260,43.26779947,16.451,16.445,0.96]
[1673375806452,43.26779947,16.451,16.446,0.96]
[1673375807298,43.26779947,16.451,16.441,20.0]
[1673375807509,45.6,16.45,16.441,20.0]
[1673375807729,45.6,16.45,16.44,125.71]
[1673375807730,20.0,16.449,16.44,125.71]
[1673375810758,20.0,16.449,16.441,20.0]
[1673375815732,20.0,16.449,16.442,1.92]
[1673375815943,20.0,16.449,16.441,20.0]
[1673375816350,20.0,16.449,16.442,1.92]
[1673375816661,20.0,16.449,16.441,20.0]
[1673375819605,45.61,16.448,16.441,20.0]
[1673375822035,20.0,16.447,16.441,20.0]
[1673375822760,20.0,16.447,16.442,0.96]
[1673375822976,20.0,16.447,16.442,1.92]
[1673375824984,20.0,16.447,16.441,20.0]
[1673375825828,20.0,16.447,16.442,1.92]
[1673375826137,20.0,16.447,16.441,20.0]
[1673375826776,20.0,16.447,16.442,1.92]
[1673375828556,20.0,16.447,16.441,20.0]
[1673375829805,20.0,16.447,16.442,0.96]
[1673375830020,20.0,16.447,16.441,20.0]
[1673375837169,219.69838001,16.451,16.442,11.23]
[1673375837362,219.69838001,16.451,16.443,1.92]
[1673375837567,219.69838001,16.451,16.443,56.95914308]
[1673375837784,43.26779947,16.451,16.444,15.08]
[1673375838003,43.26779947,16.451,16.445,21.92]
[1673375838423,43.26779947,16.451,16.445,56.95914308]
[1673375838955,43.26779947,16.451,16.445,21.92]
[1673375839165,43.26779947,16.451,16.446,20.0]
[1673375839586,43.26779947,16.451,16.445,1.92]
[1673375844852,43.26779947,16.451,16.445,82.2752599]
[1673375845164,43.26779947,16.451,16.446,20.0]
[1673375845378,43.26779947,16.451,16.447,1.92]
[1673375845571,43.26779947,16.451,16.447,87.37648203]
[1673375845783,43.26779947,16.451,16.448,20.0]
[1673375846098,57.93140879,16.452,16.449,1.92]
[1673375848946,46.93140879,16.452,16.45,45.31611682]
[1673375849263,46.93140879,16.452,16.451,21.92]
[1673375849466,46.93140879,16.452,16.451,103.95728866]
[1673375849694,46.93140879,16.452,16.451,67.09147891]
[1673375850226,46.93140879,16.452,16.451,20.0]
[1673375850416,46.93140879,16.452,16.444,67.09147891]
[1673375850840,46.93140879,16.452,16.444,102.99728866]
[1673375851048,46.93140879,16.452,16.445,82.99728866]
[1673375851277,46.93140879,16.452,16.446,20.0]
[1673375851469,46.93140879,16.452,16.446,102.99728866]
[1673375851797,46.93140879,16.452,16.447,37.82580975]
[1673375851987,46.93140879,16.452,16.448,20.0]
[1673375852199,46.93140879,16.452,16.449,1.92]
[1673375852409,46.93140879,16.452,16.448,20.0]
[1673375852835,46.93140879,16.452,16.448,67.09147891]
[1673375853053,46.93140879,16.452,16.448,20.0]
[1673375853259,46.93140879,16.452,16.443,20.0]
[1673375853894,65.6,16.451,16.443,20.0]
[1673375854105,20.0,16.451,16.442,47.09147891]
[1673375854306,65.6,16.451,16.443,20.0]
[1673375854516,65.6,16.451,16.441,20.0]
[1673375854740,20.0,16.451,16.441,20.0]
[1673375854956,20.0,16.451,16.442,1.92]
[1673375855906,65.6,16.451,16.442,1.92]
[1673375856214,20.0,16.451,16.442,1.92]
[1673375856423,65.6,16.451,16.441,20.0]
[1673375856935,65.6,16.451,16.44,125.87]
[1673375859048,65.6,16.451,16.441,20.0]
[1673375863445,1.92,16.45,16.441,20.0]
[1673375863878,45.61,16.449,16.441,20.0]
[1673375864307,20.0,16.448,16.441,20.0]
[1673375864732,45.61,16.447,16.441,20.0]
[1673375865252,20.0,16.446,16.441,20.0]
[1673375866099,55.68671909,16.446,16.441,20.0]
[1673375870082,55.68671909,16.446,16.43,25.05]
[1673375870284,50.6144512,16.445,16.42,126.03]
[1673375870495,20.0,16.444,16.42,126.03]
[1673375870814,113.6588512,16.443,16.43,25.18]
[1673375871025,20.0,16.442,16.43,25.18]
[1673375871235,0.96,16.441,16.43,25.18]
[1673375871561,20.0,16.44,16.43,25.18]
[1673375871771,0.96,16.439,16.43,25.18]
[1673375872088,20.0,16.438,16.421,11.07]
[1673375872303,3.0744512,16.437,16.43,25.18]
[1673375872517,48.7144512,16.437,16.43,25.18]
[1673375874282,48.7144512,16.437,16.431,20.0]
[1673375877032,20.0,16.436,16.431,20.0]
[1673375877341,3.0744512,16.435,16.431,20.0]
[1673375878271,3.0744512,16.435,16.421,20.0]
[1673375878482,3.0744512,16.435,16.422,1.42]
[1673375878692,20.0,16.436,16.422,0.96]
[1673375878915,20.0,16.436,16.43,25.0]
[1673375879133,20.0,16.436,16.431,20.0]
[1673375879743,1.92,16.435,16.431,20.0]
[1673375879954,1.92,16.435,16.42,125.96]
[1673375880184,3.0744512,16.433,16.42,125.96]
[1673375880385,3.0744512,16.431,16.42,125.96]
[1673375880800,48.7344512,16.43,16.42,125.96]
[1673375881430,21.92,16.429,16.42,125.96]
[1673375881850,21.92,16.429,16.42,25.11]
[1673375882065,20.0,16.427,16.42,25.11]
[1673375883232,20.0,16.427,16.42,25.02]
[1673375884069,20.0,16.427,16.421,20.0]
[1673375885339,1.92,16.426,16.421,20.0]
[1673375885859,45.67,16.425,16.421,20.0]
[1673375886063,1.92,16.424,16.421,20.0]
[1673375886678,1.92,16.424,16.411,20.0]
[1673375888257,45.68,16.423,16.411,20.0]
[1673375888468,45.68,16.423,16.41,126.43]
[1673375888469,4.9944512,16.422,16.41,126.43]
[1673375888692,1.92,16.422,16.41,126.43]
[1673375888904,21.92,16.422,16.41,126.43]
[1673375889308,129.6704,16.425,16.41,126.43]
[1673375889309,109.6704,16.425,16.411,20.0]
[1673375889533,109.6704,16.425,16.42,25.02]
[1673375889739,20.0,16.427,16.42,126.06]
[1673375889942,20.0,16.427,16.421,20.0]
[1673375892045,0.96,16.426,16.421,20.0]
[1673375892256,0.96,16.425,16.42,25.29]
[1673375893823,0.96,16.424,16.42,25.29]
[1673375894035,0.96,16.424,16.41,126.79]
[1673375894245,20.96,16.424,16.411,20.0]
[1673375894475,0.96,16.423,16.411,20.0]
[1673375895102,0.96,16.423,16.412,0.96]
[1673375895841,0.96,16.422,16.411,20.0]
[1673375896252,20.96,16.422,16.411,20.0]
[1673375896464,23.350751,16.422,16.411,20.0]
[1673375896679,0.96,16.421,16.411,20.0]
[1673375896993,0.96,16.42,16.411,20.0]
[1673375897204,0.96,16.419,16.411,20.0]
[1673375897426,0.96,16.418,16.411,20.0]
[1673375897816,0.96,16.417,16.411,20.0]
[1673375899294,0.96,16.416,16.411,20.0]
[1673375899504,0.96,16.415,16.41,25.41]
[1673375899708,0.96,16.415,16.4,426.55]
[1673375899922,0.96,16.414,16.4,426.55]
[1673375900133,0.96,16.415,16.4,426.55]
[1673375900359,0.96,16.414,16.4,426.55]
[1673375900571,0.96,16.413,16.4,426.55]
[1673375900778,0.96,16.412,16.4,426.55]
[1673375901188,0.96,16.411,16.4,426.55]
[1673375901399,0.96,16.41,16.4,426.55]
[1673375902045,0.96,16.409,16.4,426.55]
[1673375902239,0.96,16.409,16.401,20.0]
[1673375902573,0.96,16.41,16.401,20.0]
[1673375902780,25.07,16.43,16.402,0.96]
[1673375902990,227.9187,16.425,16.402,2.1009781]
[1673375903183,227.9187,16.425,16.41,126.08]
[1673375903398,227.9187,16.425,16.411,20.96]
[1673375903605,20.0,16.439,16.411,22.1009781]
[1673375903924,20.0,16.439,16.42,126.6]
[1673375904124,45.64,16.435,16.421,20.0]
[1673375904331,45.64,16.435,16.421,21.1409781]
[1673375904541,45.64,16.435,16.422,1.1409781]
[1673375905186,20.0,16.433,16.422,1.1409781]
[1673375905518,1.92,16.432,16.421,20.0]
[1673375905837,20.0,16.43,16.421,20.0]
[1673375906041,18.92,16.429,16.421,20.0]
[1673375906243,64.58,16.429,16.415,1.1409781]
[1673375906562,64.58,16.429,16.42,25.12]
[1673375906765,20.0,16.43,16.421,20.0]
[1673375906982,20.0,16.43,16.421,21.1409781]
[1673375907180,20.0,16.43,16.422,1.1409781]
[1673375907595,20.0,16.431,16.422,1.1409781]
[1673375907925,20.0,16.433,16.422,1.1409781]
[1673375909066,20.0,16.433,16.42,126.08]
[1673375909280,1.92,16.432,16.421,1.1409781]
[1673375910456,20.0,16.433,16.42,126.08]
[1673375910782,20.0,16.433,16.421,1.92]
[1673375910996,20.0,16.437,16.421,23.0609781]
[1673375911184,20.0,16.438,16.43,126.08]
[1673375911517,20.0,16.438,16.431,23.0609781]
[1673375911917,20.0,16.438,16.432,1.1409781]
[1673375912459,55.68671909,16.443,16.432,1.1409781]
[1673375912666,55.68671909,16.443,16.433,0.96]
[1673375913098,55.68671909,16.443,16.434,1.1409781]
[1673375919272,65.62,16.442,16.434,1.1409781]
[1673375919585,3.03749609,16.439,16.435,1.1409781]
[1673375919788,3.03749609,16.439,16.43,126.08]
[1673375920003,3.03749609,16.439,16.435,0.0009781]
[1673375920234,3.03749609,16.439,16.43,126.08]
[1673375920442,3.03749609,16.439,16.431,1.1409781]
[1673375920635,3.03749609,16.439,16.431,21.1409781]
[1673375921197,3.03749609,16.439,16.432,0.94783127]
[1673375922368,3.0744512,16.437,16.432,0.94783127]
[1673375923185,48.7144512,16.437,16.432,0.94783127]
[1673375923399,20.0,16.436,16.432,0.94783127]
[1673375923724,23.0744512,16.436,16.432,0.94783127]
[1673375924250,3.0744512,16.434,16.433,0.00820245]
[1673375924444,3.0744512,16.435,16.433,0.00820245]
[1673375924865,3.0744512,16.435,16.423,20.0]
[1673375925077,3.0744512,16.435,16.424,3.32820245]
[1673375925296,20.0,16.436,16.424,3.32820245]
[1673375925486,20.0,16.436,16.43,126.4]
[1673375925807,20.0,16.436,16.431,21.40820245]
[1673375926332,45.64,16.435,16.432,1.40820245]
[1673375926755,20.0,16.436,16.432,1.40820245]
[1673375928437,20.0,16.436,16.431,20.0]
[1673375929063,20.0,16.436,16.432,1.19700806]
[1673375934767,20.0,16.436,16.431,20.0]
[1673375935076,20.0,16.436,16.432,1.19700806]
[1673375937371,1.92,16.435,16.432,1.19700806]
[1673375937590,2.32825695,16.434,16.432,0.00700806]
[1673375938321,0.96,16.433,16.432,0.00700806]
[1673375938532,3.71188891,16.433,16.432,0.00700806]
[1673375938742,3.71188891,16.433,16.43,1.19]
[1673375938968,3.71188891,16.433,16.423,20.0]
[1673375939282,3.71188891,16.433,16.424,1.19700806]
[1673375939479,0.96,16.433,16.424,1.19700806]
[1673375939688,1.7945118,16.433,16.424,1.19700806]
[1673375940315,1.92,16.432,16.424,1.19700806]
[1673375940527,47.57,16.432,16.424,1.19700806]
[1673375940734,20.0,16.431,16.424,1.19700806]
[1673375940941,1.92,16.43,16.424,1.19700806]
[1673375942840,20.0,16.431,16.424,1.19700806]
[1673375943169,11.6023,16.431,16.425,0.96]
[1673375943476,20.0,16.432,16.426,47.37569792]
[1673375943689,18.5258,16.433,16.427,20.96]
[1673375943898,18.5258,16.433,16.428,0.96]
[1673375944098,7.7417,16.433,16.429,0.96]
[1673375944304,7.7417,16.433,16.43,0.96]
[1673375944514,7.7417,16.433,16.431,0.96]
[1673375944749,7.7417,16.433,16.431,54.51968126]
[1673375944944,7.7417,16.433,16.432,1.1298129]
[1673375946944,7.7417,16.433,16.431,20.0]
[1673375947138,7.7417,16.433,16.432,1.1298129]
[1673375953041,7.7417,16.433,16.427,34.51968126]
[1673375953243,7.7417,16.433,16.428,21.92]
[1673375953465,7.7417,16.433,16.428,44.6898129]
[1673375953683,7.7417,16.433,16.429,1.1298129]
[1673375957246,6.7417,16.433,16.429,1.1298129]
[1673375959018,6.7417,16.433,16.426,20.0]
[1673375959230,6.7417,16.433,16.427,1.64801112]
[1673375959974,2.65699684,16.432,16.427,1.64801112]
[1673375960915,2.65699684,16.432,16.424,20.0]
[1673375961134,2.65699684,16.432,16.425,1.64801112]
[1673375961344,0.96,16.431,16.425,1.64801112]
[1673375961870,0.96,16.43,16.425,1.64801112]
[1673375962082,0.96,16.429,16.425,1.64801112]
[1673375962293,0.96,16.428,16.425,1.64801112]
[1673375962486,0.96,16.427,16.425,1.64801112]
[1673375962696,0.96,16.426,16.425,1.64801112]
[1673375963540,20.0,16.429,16.425,1.64801112]
[1673375963755,1.92,16.428,16.425,1.64801112]
[1673375964590,20.0,16.429,16.425,1.64801112]
[1673375964919,20.0,16.431,16.425,1.64801112]
[1673375965120,20.0,16.431,16.425,21.64801112]
[1673375965333,20.0,16.431,16.425,56.16769238]
[1673375965551,20.0,16.431,16.426,1.64801112]
[1673375965960,20.0,16.431,16.426,36.16769238]
[1673375966176,20.0,16.431,16.427,20.0]
[1673375966386,20.0,16.434,16.427,21.64801112]
[1673375966706,20.0,16.434,16.428,2.60801112]
[1673375966918,20.0,16.434,16.428,1.64801112]
[1673375968897,0.96,16.432,16.428,1.64801112]
[1673375969750,46.61,16.431,16.428,1.64801112]
[1673375970160,0.96,16.43,16.428,1.64801112]
[1673375970903,45.66,16.43,16.428,1.64801112]
[1673375971109,45.66,16.43,16.421,20.0]
[1673375971435,1.92,16.429,16.422,1.6020517]
[1673375971838,0.96,16.429,16.422,1.6020517]
[1673375972068,20.96,16.429,16.422,1.6020517]
[1673375973737,0.96,16.428,16.422,1.6020517]
[1673375973935,20.96,16.429,16.422,1.6020517]
[1673375977094,0.96,16.428,16.422,1.6020517]
[1673375977302,0.96,16.427,16.422,1.6020517]
[1673375977835,20.0,16.425,16.41,126.03]
[1673375978039,20.0744512,16.424,16.413,1.6020517]
[1673375978251,20.96,16.423,16.413,1.6020517]
[1673375978466,3.0744512,16.422,16.413,1.6020517]
[1673375978679,0.96,16.421,16.413,1.6020517]
[1673375980683,46.65,16.42,16.413,1.6020517]
[1673375980873,0.96,16.419,16.413,1.6020517]
[1673375981083,0.96,16.418,16.413,1.6020517]
[1673375981308,0.96,16.417,16.413,1.6020517]
[1673375981509,45.69,16.419,16.413,1.6020517]
[1673375981724,0.96,16.418,16.413,1.6020517]
[1673375982041,65.69,16.42,16.413,1.6020517]
[1673375982042,1.92,16.419,16.413,1.6020517]
[1673375983090,1.92,16.419,16.411,20.0]
[1673375983297,1.92,16.419,16.412,1.51164448]
[1673375985938,65.69,16.42,16.412,1.51164448]
[1673375986142,20.0,16.42,16.412,1.51164448]
[1673375986979,20.0,16.42,16.411,20.0]
[1673375987189,65.69,16.42,16.412,1.51164448]
[1673375987420,0.96,16.419,16.412,1.51164448]
[1673375987817,0.96,16.418,16.412,1.51164448]
[1673375988988,46.65,16.418,16.412,1.51164448]
[1673375989201,46.65,16.419,16.412,1.51164448]
[1673375993128,0.96,16.419,16.412,1.51164448]
[1673375993313,1.92,16.419,16.412,1.51164448]
[1673375993523,47.61,16.419,16.412,1.51164448]
[1673375994050,45.69,16.419,16.412,1.51164448]
[1673375994264,20.0,16.42,16.412,1.51164448]
[1673375994475,45.69,16.419,16.412,1.51164448]